fUST/lending_fUST_20250804
["ID","MTS","AMOUNT","RATE_DAILY","PERIOD"]
[377268368,1754309445884,-460.0,0.00033669,2]
[377268370,1754309445894,-460.0,0.00033669,2]
[377268374,1754309445904,-460.0,0.00033669,2]
[377268376,1754309445915,-1068.72,0.00033669,2]
[377268378,1754309445925,-802.54,0.00033669,2]
[377268380,1754309445935,-191.15456409,0.00033669,2]
[377268383,1754309445956,-437.90543591,0.00033669,2]
[377268385,1754309445966,-515.05,0.00033669,2]
[377268387,1754309445975,-515.05,0.00033669,2]
[377268389,1754309445985,-460.0,0.00033669,2]
[377268391,1754309445994,-460.0,0.00033669,2]
[377268393,1754309446004,-1088.9,0.00033669,2]
[377268395,1754309446013,-460.0,0.00033669,2]
[377268397,1754309446022,-460.0,0.00033669,2]
[377268399,1754309446032,-460.0,0.00033669,2]
[377268401,1754309446041,-815.04,0.00033669,2]
[377268403,1754309446051,-460.0,0.00033669,2]
[377268405,1754309446060,-489.62,0.00033669,2]
[377268407,1754309446069,-519.82,0.0003367,2]
[377268409,1754309446079,-460.0,0.0003367,2]
[377268411,1754309446088,-13012.25,0.0003367,2]
[377268413,1754309446098,-515.05,0.0003367,2]
[377268414,1754309446107,-515.05,0.0003367,2]
[377268416,1754309446117,-500.0,0.0003367,120]
[377268418,1754309446126,-515.05,0.0003367,2]
[377268420,1754309446136,-1282.19,0.0003367,2]
[377268422,1754309446145,-843.0,0.0003367,2]
[377268424,1754309446155,-761.28,0.0003367,2]
[377268426,1754309446164,-2280.85,0.0003367,2]
[377268428,1754309446173,-397.46354709,0.0003367,2]
[377268632,1754309448442,-30.53883618,0.0003367,2]
[377269110,1754309453573,500.0,0.00033,30]
[377269167,1754309454196,5000.0,0.00033201,2]
[377269226,1754309470782,5000.0,0.00033201,2]
[377269229,1754309488384,5000.0,0.00033201,2]
[377269230,1754309505043,454.0687035,0.00033201,2]
[377269231,1754309505068,4545.9312965,0.00033201,2]
[377269232,1754309510033,227.75,0.00033201,30]
[377269233,1754309521523,5000.0,0.00033201,2]
[377269235,1754309526921,2662.5373772,0.00032218,2]
[377269236,1754309528138,1000.0,0.000331,2]
[377269237,1754309538039,5000.0,0.00033201,2]
[377269238,1754309539250,500.0,0.00028426,2]
[377269239,1754309539636,500.0,0.0003142,7]
[377269240,1754309540132,500.0,0.00031619,7]
[377269241,1754309549445,500.0,0.00031945,7]
[377269242,1754309555249,5000.0,0.00033201,2]
[377269244,1754309571315,4563.7813263,0.00033201,2]
[377269245,1754309571339,436.2186737,0.00033201,2]
[377269246,1754309580907,202.45,0.00033,30]
[377269247,1754309582649,2653.03546325,0.00031557,2]
[377269248,1754309587401,5000.0,0.00033201,2]
[377269249,1754309603984,5000.0,0.00033201,2]
[377269250,1754309608284,241.0,0.00030135,120]
[377269251,1754309620100,5000.0,0.00033201,2]
[377269252,1754309637014,5000.0,0.00033201,2]
[377269253,1754309652855,5000.0,0.00033201,2]
[377269254,1754309653616,179.95,0.00033201,30]
[377269255,1754309668024,-329.48379534,0.00033282,2]
[377269256,1754309669211,130.51620466,0.00033201,2]
[377269257,1754309669234,1528.34586305,0.00033201,2]
[377269258,1754309669256,3341.13793229,0.00033201,2]
[377269259,1754309672892,200.0,0.00031707,120]
[377269261,1754309677220,276.5677795,0.00033201,2]
[377269263,1754309685546,5000.0,0.00033201,2]
[377269264,1754309701718,5000.0,0.00033201,2]
[377269265,1754309721199,5000.0,0.00033201,2]
[377269266,1754309727160,159.96,0.00033201,30]
[377269267,1754309738211,5000.0,0.00033201,2]
[377269268,1754309755272,5000.0,0.00033201,2]
[377269270,1754309771345,1022.33428821,0.00033201,2]
[377269271,1754309771367,3977.66571179,0.00033201,2]
[377269274,1754309787326,5000.0,0.00033201,2]
[377269275,1754309796598,223.59466,0.00033201,2]
[377269276,1754309803519,5000.0,0.00033201,2]
[377269277,1754309803984,352.28316715,0.00033045,120]
[377269279,1754309818947,5000.0,0.00033201,2]
[377269280,1754309835087,5000.0,0.00033201,2]
[377269281,1754309840554,500.0,0.000304,7]
[377269282,1754309840920,882.44469914,0.00032548,7]
[377269283,1754309841862,500.0,0.00029517,2]
[377269284,1754309842225,500.0,0.00032621,7]
[377269285,1754309848990,176.14158357,0.00033045,120]
[377269286,1754309850509,2887.87017835,0.00033201,2]
[377269287,1754309850532,2112.12982165,0.00033201,2]
[377269288,1754309853632,500.0,0.00033201,30]
[377269289,1754309854861,500.0,0.00033201,2]
[377269290,1754309855813,500.0,0.00033201,30]
[377269291,1754309855904,500.0,0.00032269,7]
[377269292,1754309856103,500.0,0.00033201,10]
[377269293,1754309856756,500.0,0.00033201,2]
[377269294,1754309857430,500.0,0.00033201,30]
[377269295,1754309858113,500.0,0.00033201,7]
[377269296,1754309858794,500.0,0.00033201,10]
[377269297,1754309859275,500.0,0.00033201,15]
[377269298,1754309859771,500.0,0.00033201,15]
[377269299,1754309860201,500.0,0.00033201,10]
[377269300,1754309860620,500.0,0.00033201,15]
[377269301,1754309861659,500.0,0.00033201,30]
[377269302,1754309862232,500.0,0.00033201,2]
[377269303,1754309862668,295.31,0.00033201,2]
[377269304,1754309867504,5000.0,0.00033201,2]
[377269305,1754309867995,-222.03670072,0.00033273,2]
[377269306,1754309870211,-66.26162022,0.00033273,2]
[377269307,1754309875272,5000.0,0.00033201,2]
[377269308,1754309881324,301.0,0.00030135,60]
[377269309,1754309881781,300.0,0.00030135,60]
[377269310,1754309882022,300.0,0.00030135,60]
[377269311,1754309882434,300.0,0.00030135,60]
[377269312,1754309883843,5000.0,0.00033201,2]
[377269313,1754309884710,450.0,0.00030135,60]
[377269314,1754309885036,450.0,0.00030135,60]
[377269315,1754309885169,2177.96305971,0.00031557,2]
[377269316,1754309885380,450.0,0.00030135,60]
[377269317,1754309885755,450.0,0.00030135,60]
[377269318,1754309886274,450.0,0.00030135,60]
[377269319,1754309886520,453.0,0.00030135,60]
[377269320,1754309892184,2914.59711864,0.00033201,2]
[377269321,1754309892207,2044.8239812,0.00033201,2]
[377269322,1754309894121,176.14158358,0.00033038,120]
[377269323,1754309900293,5000.0,0.00033201,2]
[377269324,1754309915702,5000.0,0.00033201,2]
[377269326,1754309931319,5000.0,0.00033201,2]
[377269327,1754309933780,586.11,0.00033201,120]
[377269328,1754309947239,3493.87184958,0.00033201,2]
[377269329,1754309999036,250.0,0.00031756,2]
[377269330,1754310005555,8449.05258564,0.0002306,2]
[377269331,1754310005579,1805.94741436,0.0002306,2]
[377269332,1754310017531,10000.0,0.00032261,2]
[377269333,1754310025915,213.93443002,0.00033201,2]
[377269334,1754310036476,666.0,0.00032261,2]
[377269336,1754310055612,-156.66390663,0.00033263,2]
[377269337,1754310058932,-95.59712421,0.00033263,2]
[377269338,1754310065538,-4451.9327286,0.00033282,2]
[377269339,1754310140265,500.0,0.00028918,2]
[377269340,1754310147069,900.0,0.00028811,2]
[377269346,1754310186654,2235.45072947,0.00031557,2]
[377269347,1754310187399,-245.05565959,0.00033272,2]
[377269348,1754310189476,-269.22589444,0.00033272,2]
[377269350,1754310191146,-246.8797234,0.00033272,2]
[377269351,1754310193300,-218.61291664,0.00033272,2]
[377269352,1754310195892,-151.0,0.00033262,10]
[377269353,1754310197567,-186.92016374,0.00033262,10]
[377269354,1754310199311,-102.98983626,0.00033262,10]
[377269355,1754310199332,-262845.01016374,0.00033272,2]
[377269356,1754310224041,651.09671392,0.00033007,120]
[377269357,1754310228293,164.148008,0.00032136,120]
[377269358,1754310255364,477.16064128,0.00033201,7]
[377269359,1754310256283,209.693954,0.00032015,2]
[377269360,1754310273878,220.72840195,0.00033172,2]
[377269361,1754310277067,290.97579448,0.00033173,2]
[377269362,1754310282655,-247.53889469,0.00033213,2]
[377269363,1754310285359,-43.43689977,0.00033213,2]
[377269364,1754310299585,184.39,0.00032728,30]
[377269365,1754310300018,184.39,0.00033,30]
[377269367,1754310314070,325.54835696,0.00032999,120]
[377269373,1754310359017,162.77417848,0.00032999,120]
[377269374,1754310370253,441.49846518,0.00030135,120]
[377269376,1754310382651,150.0,0.00033201,2]
[377269377,1754310402419,205.82512006,0.00033152,2]
[377269378,1754310403995,162.77417849,0.00032999,120]
[377269379,1754310406873,205.82512006,0.00033173,2]
[377269380,1754310406908,10083.33695847,0.00032017,2]
[377269381,1754310406936,10000.0,0.00032017,2]
[377269382,1754310406964,4816.66304153,0.00032017,2]
[377269384,1754310423030,2257.79408358,0.00033201,2]
[377269389,1754310444401,500.0,0.00028485,2]
[377269390,1754310444783,700.0,0.000286,2]
[377269391,1754310447771,500.0,0.00031344,7]
[377269410,1754310469185,277.73637465,0.00030135,120]
[377269412,1754310474674,1225.54287489,0.00018,2]
[377269413,1754310474699,10000.0,0.00018,2]
[377269414,1754310474903,10000.0,0.00018,2]
[377269415,1754310474928,10000.0,0.00018,2]
[377269416,1754310474953,10000.0,0.00018,2]
[377269417,1754310474978,10000.0,0.00018,2]
[377269418,1754310475003,6330.54507064,0.00018,2]
[377269419,1754310478646,3669.45492936,0.00018,2]
[377269420,1754310478676,5851.4407639,0.00018,2]
[377269444,1754310484043,9341.35359243,0.0002699,2]
[377269445,1754310484761,16481.51105985,0.00024774,2]
[377269453,1754310493881,837.77,0.00032265,30]
[377269454,1754310494324,837.77,0.00033,30]
[377269455,1754310496045,245.55220991,0.00030135,120]
[377269458,1754310497466,552.86056018,0.00030135,120]
[377269459,1754310497858,10504.8476522,0.000246,2]
[377269460,1754310498068,150.0,0.00026575,30]
[377269461,1754310498480,150.0,0.00026489,30]
[377269462,1754310498642,415.66583442,0.00010618,2]
[377269463,1754310499303,219.994058,0.00013699,2]
[377269464,1754310499503,219.994058,0.00020187,2]
[377269467,1754310499732,219.994058,0.00026676,2]
[377269468,1754310500654,11198.53190473,0.000125,2]
[377269469,1754310502271,230.5,0.00033,30]
[377269470,1754310502436,502.30031673,0.00033,30]
[377269474,1754310509045,315.48580141,0.00030135,120]
[377269475,1754310509899,1834.00400861,0.000176,2]
[377269476,1754310512370,278.19470141,0.00014114,2]
[377269478,1754310514438,283.04992145,0.0001,2]
[377269479,1754310514738,363.74071162,0.00030135,120]
[377269480,1754310514811,4937.59572002,0.0002,2]
[377269481,1754310516371,353.76705322,0.00022,2]
[377269482,1754310517933,240.82074905,0.00030135,120]
[377269483,1754310518287,4986.74945774,0.0002,2]
[377269484,1754310519363,244.24214006,0.00030135,120]
[377269485,1754310520107,223.5691111,0.00030135,30]
[377269486,1754310520166,1065.29197484,0.00025,2]
[377269488,1754310520504,92489.38813826,0.00017,2]
[377269489,1754310520973,244.91534368,0.00030135,30]
[377269490,1754310521663,16024.14706397,0.00025,2]
[377269492,1754310522344,2623.08479048,0.00025,2]
[377269495,1754310523390,37231.30345423,0.00018,2]
[377269496,1754310523576,208.00495145,0.00025,2]
[377269497,1754310523684,519.79576189,0.00026,2]
[377269498,1754310523712,10364.0,0.00025,2]
[377269499,1754310523946,359.07592164,0.00025,2]
[377269500,1754310524126,401.96463663,0.00030135,120]
[377269501,1754310524888,151.46993699,0.00030135,30]
[377269502,1754310524918,468.39294534,0.00030135,120]
[377269503,1754310524946,581.47102705,0.000149,2]
[377269504,1754310525173,1000.0,0.0001,2]
[377269505,1754310525587,3111.5465312,0.0002495,2]
[377269506,1754310525966,29327.27159736,0.00018,2]
[377269508,1754310526195,430.1953959,0.00030135,120]
[377269509,1754310526363,217.74829564,0.00030135,120]
[377269510,1754310526529,19900.0,0.00026,2]
[377269511,1754310527038,30447.92595213,0.000266,2]
[377269512,1754310527335,1000.0,0.000255,2]
[377269513,1754310527506,319.67309709,0.00030135,120]
[377269515,1754310527753,205.49203237,0.00030135,120]
[377269516,1754310527837,512.31561304,0.00030135,30]
[377269518,1754310528037,552.19739803,0.00028,2]
[377269519,1754310528157,179.31043474,0.00030135,30]
[377269520,1754310528882,500.0,0.00025,2]
[377269521,1754310528950,16000.0,0.0002,2]
[377269523,1754310529164,163.94357727,0.00030135,120]
[377269524,1754310529469,9317.49839701,0.00025,2]
[377269525,1754310529636,211.02604737,0.00016,2]
[377269526,1754310529744,658.62958576,0.0001843,2]
[377269527,1754310529825,35933.01216046,0.0002,2]
[377269528,1754310529859,503.76512,0.00030135,120]
[377269529,1754310530029,536.82983239,0.00030135,120]
[377269530,1754310530302,120000.0,0.00025,2]
[377269531,1754310530763,196.6538688,0.0002739,2]
[377269532,1754310530963,221.25543076,0.00030135,120]
[377269533,1754310531223,17392.72479788,0.0001,2]
[377269534,1754310531522,202.5894647,0.00021,2]
[377269536,1754310531866,1003.97824277,0.000215,2]
[377269537,1754310532147,16306.31807525,0.0002547,2]
[377269538,1754310532183,503.26714832,0.0002465,2]
[377269539,1754310532214,160523.11525738,0.0002465,2]
[377269540,1754310532279,600.0,0.00025,2]
[377269541,1754310532958,408.10018818,0.00030135,120]
[377269542,1754310533119,188.45037101,0.00030135,120]
[377269543,1754310533545,512.8471,0.00030135,120]
[377269545,1754310537371,250.41552647,0.00029228,2]
[377269546,1754310543089,-165.701387,0.00030131,2]
[377269547,1754310545321,-170.6181126,0.00030131,2]
[377269548,1754310547408,-63.6805004,0.00030131,2]
[377269549,1754310547435,-252.31576539,0.00031172,2]
[377269550,1754310551062,-165.701387,0.00031172,2]
[377269551,1754310553109,-210.35256253,0.00031172,2]
[377269552,1754310555256,-159.684336,0.00031172,2]
[377269553,1754310556929,-267.10638613,0.00031172,2]
[377269554,1754310558784,-190.76398994,0.00030512,2]
[377269555,1754310562496,-413.29189154,0.00030512,2]
[377269556,1754310564146,651.6,0.0003257,30]
[377269557,1754310564563,651.6,0.00033,30]
[377269558,1754310565811,-278.29680352,0.00030032,2]
[377269559,1754310568422,-75.37278081,0.00030032,2]
[377269560,1754310568447,-148.93812552,0.00030512,2]
[377269561,1754310568472,-80.94690435,0.00031172,2]
[377269562,1754310573121,-1066.57940168,0.00031172,2]
[377269563,1754310573147,-4390.39597649,0.000319,25]
[377269564,1754310573174,-4390.39597637,0.00032176,26]
[377269565,1754310573199,-4390.39597637,0.00032452,26]
[377269566,1754310573222,-560.0,0.0003247,2]
[377269567,1754310573249,-1318.85170649,0.00032728,27]
[377269568,1754310573518,-183.818179,0.00032728,27]
[377269569,1754310577291,-232.3237697,0.00032728,27]
[377269570,1754310580789,-206.01154556,0.00032728,27]
[377269571,1754310586858,-467.44345486,0.00032728,27]
[377269572,1754310589941,-389.26686351,0.00032728,27]
[377269573,1754310592537,-274.710321,0.00032728,27]
[377269574,1754310596631,-300.0,0.00032728,27]
[377269575,1754310599102,-232.47341853,0.00032728,27]
[377269576,1754310602239,-175.98,0.00032728,27]
[377269577,1754310603152,2861.0,0.0002306,2]
[377269578,1754310604719,-211.89259388,0.00030131,2]
[377269579,1754310606962,-88.10740612,0.00030131,2]
[377269580,1754310606986,-68.44253768,0.00030131,2]
[377269581,1754310610523,-201.01610443,0.00030131,2]
[377269582,1754310613639,-172.90418563,0.00030131,2]
[377269583,1754310616954,-277.18971478,0.00030131,2]
[377269584,1754310623973,-193.10734889,0.00030131,2]
[377269585,1754310624826,226.05498,0.000294,120]
[377269586,1754310626555,-185.67421876,0.00030131,2]
[377269587,1754310628315,-173.49061871,0.00030131,2]
[377269588,1754310630663,-162.79077453,0.00030131,2]
[377269601,1754310632555,-165.38449659,0.00030131,2]
[377269602,1754310632565,-300.0,0.00030131,2]
[377269603,1754310632575,-248.0,0.00030131,2]
[377269604,1754310632586,-400.0,0.00030131,2]
[377269605,1754310632596,-185.29841502,0.00030132,2]
[377269606,1754310632607,-25028.70331177,0.00030132,2]
[377269607,1754310632616,-29714.42042362,0.00030132,2]
[377269608,1754310632626,-2500.0,0.0003178,7]
[377269609,1754310632636,-560.0,0.0003247,2]
[377269611,1754310632646,-2500.0,0.00032602,7]
[377269613,1754310632656,-1200.0,0.00032608,3]
[377269615,1754310632666,-609.51671772,0.00032728,27]
[377269618,1754310632676,-460.0,0.00032876,2]
[377269621,1754310632686,-4390.39597637,0.00033003,28]
[377269622,1754310632695,-200.0,0.00033144,15]
[377269623,1754310632705,-200.0,0.00033144,15]
[377269624,1754310632715,-200.0,0.00033144,15]
[377269626,1754310632725,-460.0,0.0003315,2]
[377269628,1754310632736,-274.97502116,0.0003316,2]
[377269630,1754310632746,-219.994058,0.00033165,2]
[377269632,1754310632755,-2967.9551524,0.00033173,2]
[377269634,1754310632766,-238.23,0.00033239,10]
[377269636,1754310632776,-415.9,0.00033239,10]
[377269638,1754310632785,-346.59,0.00033239,10]
[377269640,1754310632796,-218.8421865,0.00033249,7]
[377269642,1754310632808,-500.0,0.00033249,7]
[377269644,1754310632817,-500.0,0.00033249,2]
[377269645,1754310632827,-166.35592597,0.00033249,2]
[377269646,1754310632836,-500.0,0.00033249,7]
[377269648,1754310632846,-500.0,0.00033249,2]
[377269650,1754310632856,-500.0,0.00033249,7]
[377269652,1754310632865,-500.0,0.00033249,2]
[377269653,1754310632874,-500.0,0.00033249,7]
[377269655,1754310632884,-500.0,0.00033249,7]
[377269656,1754310632893,-500.0,0.00033249,2]
[377269657,1754310632903,-500.0,0.00033249,7]
[377269659,1754310632913,-500.0,0.00033249,7]
[377269660,1754310632922,-500.0,0.00033249,2]
[377269661,1754310632931,-185.0,0.00033249,7]
[377269662,1754310632941,-500.0,0.00033249,7]
[377269663,1754310632951,-500.0,0.00033249,2]
[377269664,1754310632961,-500.0,0.00033249,7]
[377269665,1754310632970,-500.0,0.00033249,2]
[377269666,1754310632979,-500.0,0.00033249,7]
[377269667,1754310632989,-500.0,0.00033249,7]
[377269668,1754310632999,-499.67854136,0.00033249,7]
[377269669,1754310633009,-500.0,0.00033249,2]
[377269671,1754310633019,-500.0,0.00033249,7]
[377269673,1754310633028,-500.0,0.00033249,7]
[377269675,1754310633038,-500.0,0.00033249,2]
[377269677,1754310633048,-500.0,0.00033249,7]
[377269679,1754310633057,-500.0,0.00033249,2]
[377269681,1754310633068,-500.0,0.00033249,7]
[377269683,1754310633078,-500.0,0.00033249,2]
[377269685,1754310633088,-500.0,0.00033249,7]
[377269687,1754310633098,-500.0,0.00033249,7]
[377269688,1754310633108,-500.0,0.00033249,2]
[377269690,1754310633118,-500.0,0.00033249,7]
[377269692,1754310633128,-500.0,0.00033249,2]
[377269694,1754310633138,-500.0,0.00033249,2]
[377269696,1754310633148,-500.0,0.00033249,2]
[377269698,1754310633158,-500.0,0.00033249,7]
[377269699,1754310633167,-500.0,0.00033249,2]
[377269701,1754310633177,-500.0,0.00033249,7]
[377269702,1754310633187,-500.0,0.00033249,2]
[377269704,1754310633197,-500.0,0.00033249,2]
[377269706,1754310633207,-500.0,0.00033249,7]
[377269708,1754310633216,-500.0,0.00033249,2]
[377269710,1754310633226,-500.0,0.00033249,2]
[377269712,1754310633236,-500.0,0.00033249,7]
[377269714,1754310633246,-500.0,0.00033249,2]
[377269716,1754310633255,-500.0,0.00033249,2]
[377269717,1754310633266,-500.0,0.00033249,2]
[377269718,1754310633276,-500.0,0.00033249,2]
[377269719,1754310633285,-500.0,0.00033249,2]
[377269720,1754310633295,-500.0,0.00033249,2]
[377269721,1754310633305,-500.0,0.00033249,2]
[377269722,1754310633314,-500.0,0.00033249,2]
[377269723,1754310633324,-500.0,0.00033249,2]
[377269724,1754310633334,-500.0,0.00033249,2]
[377269725,1754310633346,-500.0,0.00033249,2]
[377269726,1754310633356,-500.0,0.00033249,2]
[377269727,1754310633365,-500.0,0.00033249,2]
[377269728,1754310633378,-500.0,0.00033249,2]
[377269729,1754310633388,-500.0,0.00033249,2]
[377269730,1754310633397,-500.0,0.00033249,2]
[377269731,1754310633407,-500.0,0.00033249,2]
[377269732,1754310633417,-500.0,0.00033249,2]
[377269733,1754310633426,-500.0,0.00033249,2]
[377269734,1754310633436,-500.0,0.00033249,2]
[377269735,1754310633447,-500.0,0.00033249,2]
[377269736,1754310633456,-500.0,0.00033249,2]
[377269737,1754310633466,-500.0,0.00033249,2]
[377269738,1754310633475,-500.0,0.00033249,2]
[377269739,1754310633486,-500.0,0.00033249,2]
[377269740,1754310633495,-500.0,0.00033249,2]
[377269741,1754310633505,-500.0,0.00033249,2]
[377269742,1754310633516,-500.0,0.00033249,2]
[377269743,1754310633526,-500.0,0.00033249,2]
[377269744,1754310633535,-500.0,0.00033249,2]
[377269745,1754310633545,-500.0,0.00033249,2]
[377269746,1754310633555,-262.8816724,0.00033249,2]
[377269747,1754310633565,-500.0,0.00033249,2]
[377269748,1754310633574,-500.0,0.00033249,2]
[377269749,1754310633589,-500.0,0.00033249,2]
[377269750,1754310633599,-500.0,0.00033249,2]
[377269751,1754310633609,-500.0,0.00033249,2]
[377269752,1754310633619,-500.0,0.00033249,2]
[377269753,1754310633629,-500.0,0.00033249,2]
[377269754,1754310633639,-500.0,0.00033249,2]
[377269755,1754310633649,-500.0,0.00033249,2]
[377269756,1754310633659,-500.0,0.00033249,2]
[377269757,1754310633668,-500.0,0.00033249,2]
[377269758,1754310633678,-500.0,0.00033249,2]
[377269759,1754310633687,-500.0,0.00033249,2]
[377269760,1754310633697,-500.0,0.00033249,2]
[377269761,1754310633706,-500.0,0.00033249,2]
[377269762,1754310633715,-500.0,0.00033249,2]
[377269763,1754310633725,-500.0,0.00033249,2]
[377269764,1754310633735,-500.0,0.00033249,2]
[377269765,1754310633745,-500.0,0.00033249,2]
[377269766,1754310633755,-500.0,0.00033249,2]
[377269767,1754310633765,-500.0,0.00033249,2]
[377269768,1754310633776,-500.0,0.00033249,2]
[377269769,1754310633786,-470.10448752,0.00033249,2]
[377269770,1754310633819,-29.89551248,0.00033249,2]
[377269771,1754310633829,-500.0,0.00033249,7]
[377269772,1754310633838,-163.97718451,0.00033249,2]
[377269773,1754310633849,-500.0,0.00033249,2]
[377269774,1754310633858,-300.0,0.00033249,2]
[377269775,1754310633867,-15525.29496052,0.0003325,2]
[377269776,1754310633992,506.8,0.00032728,30]
[377269777,1754310634051,506.8,0.00033,30]
[377269778,1754310634934,200.0,0.000294,120]
[377269779,1754310635934,218.31848,0.000311,120]
[377269809,1754310638395,-460.0,0.00033249,2]
[377269811,1754310638405,-460.0,0.00033249,2]
[377269813,1754310638415,-6400.692546,0.0003325,2]
[377269818,1754310638452,-21044.95599648,0.0003325,2]
[377269819,1754310638462,-7218.8464771,0.0003325,2]
[377269820,1754310638473,-288.82,0.00033251,10]
[377269821,1754310638483,-500.0,0.00033252,2]
[377269822,1754310638492,-151.0,0.00033252,2]
[377269823,1754310638501,-151.0,0.00033252,2]
[377269824,1754310638511,-151.0,0.00033252,2]
[377269825,1754310638521,-151.0,0.00033252,2]
[377269826,1754310638531,-151.0,0.00033252,2]
[377269827,1754310638540,-213.22508175,0.00033252,2]
[377269828,1754310638550,-2030.296672,0.00033252,2]
[377269829,1754310638560,-300.0,0.00033252,2]
[377269830,1754310638570,-300.0,0.00033252,2]
[377269831,1754310638579,-300.0,0.00033252,2]
[377269832,1754310638588,-151.0,0.00033252,2]
[377269833,1754310638598,-300.0,0.00033252,2]
[377269834,1754310638607,-151.0,0.00033252,2]
[377269835,1754310638617,-300.0,0.00033252,2]
[377269836,1754310638627,-151.0,0.00033252,2]
[377269837,1754310638636,-300.0,0.00033252,2]
[377269838,1754310638646,-151.0,0.00033252,2]
[377269839,1754310638655,-300.0,0.00033252,2]
[377269840,1754310638665,-300.0,0.00033252,2]
[377269841,1754310638675,-151.0,0.00033252,2]
[377269842,1754310638684,-300.0,0.00033252,2]
[377269843,1754310638694,-151.0,0.00033252,2]
[377269844,1754310638703,-300.0,0.00033252,2]
[377269845,1754310638712,-151.0,0.00033252,2]
[377269846,1754310638721,-301.54390542,0.00033252,2]
[377269847,1754310638730,-151.0,0.00033252,2]
[377269849,1754310638740,-151.0,0.00033252,2]
[377269850,1754310638750,-151.0,0.00033252,2]
[377269852,1754310638759,-151.0,0.00033252,2]
[377269854,1754310638770,-151.0,0.00033252,2]
[377269856,1754310638780,-1600.0,0.00033259,3]
[377269858,1754310638789,-50000.0,0.0003326,2]
[377269860,1754310638799,-514.62,0.0003326,2]
[377269862,1754310638809,-581.03,0.0003326,2]
[377269864,1754310638819,-620.21,0.0003326,2]
[377269866,1754310638828,-2563.43,0.0003326,2]
[377269868,1754310638838,-9027.26,0.00033261,120]
[377269871,1754310638848,-500.0,0.00033261,2]
[377269873,1754310638857,-2892.37,0.00033262,3]
[377269874,1754310638866,-1446.18,0.00033262,3]
[377269877,1754310638876,-723.09,0.00033262,3]
[377269879,1754310638886,-361.55,0.00033262,3]
[377269881,1754310638896,-180.77,0.00033262,3]
[377269882,1754310638905,-542.36,0.00033262,3]
[377269884,1754310638915,-841.87402298,0.00033262,3]
[377269886,1754310638925,-85941.887006,0.00033262,2]
[377269888,1754310638934,-14437.6929542,0.00033262,2]
[377269890,1754310638944,-106175.21564219,0.00033272,2]
[377269892,1754310638954,-500.0,0.00033273,5]
[377269894,1754310638963,-337.15305541,0.00033273,5]
[377269896,1754310638973,-2000.0,0.00033273,2]
[377269898,1754310638982,-931.982,0.00033273,2]
[377269900,1754310638992,-4390.39597637,0.00033279,28]
[377269902,1754310639002,-1969.6577207,0.00033282,2]
[377269904,1754310639011,-250.61592133,0.00033304,2]
[377269906,1754310639022,-2105.41764886,0.00033307,2]
[377269908,1754310639032,-42970.943503,0.00033342,2]
[377269911,1754310639041,-7218.8464771,0.00033342,2]
[377269912,1754310639053,-682.77,0.00033352,2]